fUSD/lending_fUSD_20240704
["ID","MTS","AMOUNT","RATE_DAILY","PERIOD"]
[331126475,1720096247939,-981.615554,0.00022,7]
[331126476,1720096247948,-151.0,0.00022,7]
[331126477,1720096247957,-151.0,0.00022,7]
[331126478,1720096247967,-152.854636,0.00022,7]
[331126479,1720096247976,-151.0,0.00022,7]
[331126480,1720096247987,-151.0,0.00022,7]
[331126481,1720096247996,-151.0,0.00022,7]
[331126482,1720096248006,-151.0,0.00022,7]
[331126483,1720096248015,-151.0,0.00022,7]
[331126484,1720096248024,-1304.294154,0.00022,7]
[331126485,1720096248034,-1304.294154,0.00022,7]
[331126486,1720096248043,-151.0,0.00022,7]
[331126487,1720096248054,-152.355873,0.00022,7]
[331126488,1720096248063,-534.0,0.00022,2]
[331126489,1720096248073,-151.0,0.00022,7]
[331126490,1720096248083,-151.0,0.00022,7]
[331126491,1720096248092,-151.0,0.00022,7]
[331126492,1720096248102,-1000.0,0.00022,2]
[331126493,1720096248110,-157.10491405,0.00022005,2]
[331126494,1720096248120,-151.15550604,0.00022024,2]
[331126495,1720096248130,-317.96617988,0.00022025,2]
[331126496,1720096248139,-151.15575418,0.00022025,2]
[331126497,1720096248148,-500.0,0.00022025,2]
[331126498,1720096248158,-500.0,0.00022025,2]
[331126499,1720096248167,-500.0,0.00022025,2]
[331126500,1720096248176,-500.0,0.00022025,2]
[331126501,1720096248184,-500.0,0.00022025,2]
[331126502,1720096248194,-500.0,0.00022025,2]
[331126503,1720096248203,-500.0,0.00022025,2]
[331126504,1720096248212,-500.0,0.00022025,2]
[331126505,1720096248221,-500.0,0.00022025,2]
[331126506,1720096248230,-500.0,0.00022025,2]
[331126507,1720096248239,-500.0,0.00022025,2]
[331126508,1720096248247,-500.0,0.00022025,2]
[331126509,1720096248256,-500.0,0.00022025,2]
[331126510,1720096248265,-500.0,0.00022025,2]
[331126511,1720096248274,-500.0,0.00022025,2]
[331126512,1720096248283,-500.0,0.00022025,2]
[331126513,1720096248292,-500.0,0.00022025,2]
[331126514,1720096248301,-500.0,0.00022025,2]
[331126515,1720096248311,-500.0,0.00022025,2]
[331126516,1720096248320,-500.0,0.00022025,2]
[331126517,1720096248329,-500.0,0.00022025,2]
[331126518,1720096248339,-500.0,0.00022025,2]
[331126519,1720096248348,-500.0,0.00022025,2]
[331126520,1720096248358,-500.0,0.00022025,2]
[331126521,1720096248367,-500.0,0.00022025,2]
[331126522,1720096248378,-500.0,0.00022025,2]
[331126523,1720096248387,-500.0,0.00022025,2]
[331126524,1720096248397,-500.0,0.00022025,2]
[331126525,1720096248407,-500.0,0.00022025,2]
[331126526,1720096248416,-500.0,0.00022025,2]
[331126527,1720096248426,-500.0,0.00022025,2]
[331126528,1720096248435,-500.0,0.00022025,2]
[331126529,1720096248446,-151.82789578,0.00022041,2]
[331126530,1720096248456,-151.0,0.00022049,7]
[331126531,1720096248466,-151.0,0.00022049,7]
[331126532,1720096248475,-151.0,0.00022049,7]
[331126533,1720096248484,-151.0,0.00022049,7]
[331126534,1720096248493,-152.73217891,0.00022051,2]
[331126535,1720096248503,-727.2370522,0.0002207,2]
[331126536,1720096248512,-157.10491405,0.0002207,2]
[331126537,1720096248522,-157.05006221,0.00022072,2]
[331126538,1720096248531,-5589.19344276,0.00022073,2]
[331126539,1720096248540,-284.0,0.00022075,7]
[331126540,1720096248550,-151.0,0.00022075,7]
[331126541,1720096248559,-151.0,0.00022075,7]
[331126542,1720096248568,-151.0,0.00022075,7]
[331126543,1720096248578,-151.0,0.00022075,7]
[331126544,1720096248587,-684.414139,0.00022075,7]
[331126545,1720096248597,-151.15550604,0.00022077,2]
[331126546,1720096248606,-151.227115,0.00022084,7]
[331126547,1720096248615,-151.227115,0.00022084,7]
[331126548,1720096248625,-151.0,0.00022084,7]
[331126549,1720096248635,-151.0,0.00022084,7]
[331126550,1720096248644,-196.912765,0.00022084,7]
[331126551,1720096248654,-151.0,0.00022084,7]
[331126552,1720096248663,-151.0,0.00022084,7]
[331126553,1720096248672,-151.0,0.00022084,7]
[331126554,1720096248682,-170.732672,0.00022084,7]
[331126555,1720096248691,-592.789373,0.00022084,7]
[331126556,1720096248701,-592.789373,0.00022084,7]
[331126557,1720096248711,-151.0,0.00022084,7]
[331126558,1720096248720,-151.0,0.00022084,7]
[331126559,1720096248729,-152.630781,0.00022084,7]
[331126560,1720096248739,-151.0,0.00022084,7]
[331126561,1720096248748,-603.480772,0.00022084,7]
[331126562,1720096248757,-603.480772,0.00022084,7]
[331126563,1720096248766,-281.033409,0.00022084,7]
[331126564,1720096248776,-281.033409,0.00022084,7]
[331126565,1720096248785,-151.0,0.00022084,7]
[331126566,1720096248795,-151.0,0.00022084,7]
[331126567,1720096248804,-151.0,0.00022084,7]
[331126568,1720096248814,-151.0,0.00022084,7]
[331126569,1720096248823,-151.2398,0.00022084,7]
[331126570,1720096248832,-151.2398,0.00022084,7]
[331126571,1720096248842,-27860.1438754,0.00022084,2]
[331126572,1720096248851,-1485.4790341,0.00022084,2]
[331126573,1720096248861,-151.0,0.00022084,7]
[331126574,1720096248871,-151.0,0.00022084,7]
[331126575,1720096248880,-151.0,0.00022084,7]
[331126576,1720096248890,-151.0,0.00022084,7]
[331126577,1720096248904,-151.0,0.00022084,7]
[331126578,1720096248914,-151.0,0.00022084,7]
[331126579,1720096248924,-3517.573686,0.00022084,7]
[331126580,1720096248933,-3517.573686,0.00022084,7]
[331126581,1720096248945,-320.399581,0.00022084,7]
[331126582,1720096248955,-320.399581,0.00022084,7]
[331126583,1720096248963,-151.0,0.00022084,7]
[331126584,1720096248974,-875.200735,0.00022084,7]
[331126585,1720096248986,-875.200735,0.00022084,7]
[331126586,1720096248995,-151.0,0.00022085,7]
[331126587,1720096249005,-246.425895,0.00022085,7]
[331126588,1720096249014,-151.0,0.00022085,7]
[331126589,1720096249024,-151.0,0.00022085,7]
[331126590,1720096249033,-152.038252,0.00022085,7]
[331126591,1720096249042,-151.0,0.00022085,7]
[331126592,1720096249051,-151.0,0.00022085,7]
[331126593,1720096249062,-151.0,0.00022085,7]
[331126594,1720096249071,-170.287508,0.00022085,7]
[331126595,1720096249081,-170.287508,0.00022085,7]
[331126596,1720096249090,-151.0,0.00022085,7]
[331126597,1720096249100,-393.647115,0.00022085,7]
[331126598,1720096249110,-393.647115,0.00022085,7]
[331126599,1720096249121,-151.0,0.00022085,7]
[331126600,1720096249131,-151.0,0.00022085,7]
[331126601,1720096249140,-184.042067,0.00022085,7]
[331126602,1720096249150,-184.042067,0.00022085,7]
[331126603,1720096249160,-151.0,0.00022085,7]
[331126604,1720096249169,-185.651718,0.00022085,7]
[331126605,1720096249179,-151.0,0.00022085,7]
[331126606,1720096249188,-185.651718,0.00022085,7]
[331126607,1720096249199,-151.0,0.00022085,7]
[331126608,1720096249208,-151.0,0.00022085,7]
[331126609,1720096249217,-151.0,0.00022085,7]
[331126610,1720096249229,-151.0,0.00022085,7]
[331126611,1720096249238,-1094.009458,0.00022085,7]
[331126612,1720096249248,-1094.009458,0.00022085,7]
[331126613,1720096249257,-156.813798,0.00022085,7]
[331126614,1720096249267,-151.0,0.00022085,7]
[331126615,1720096249277,-301.682833,0.00022085,7]
[331126616,1720096249287,-151.0,0.00022085,7]
[331126617,1720096249297,-530.645601,0.00022085,7]
[331126618,1720096249306,-301.682833,0.00022085,7]
[331126619,1720096249316,-530.645601,0.00022085,7]
[331126620,1720096249325,-151.0,0.00022085,7]
[331126621,1720096249335,-151.0,0.00022085,7]
[331126622,1720096249345,-346.077258,0.00022085,7]
[331126623,1720096249354,-1483.551214,0.00022085,7]
[331126624,1720096249363,-346.077258,0.00022085,7]
[331126625,1720096249376,-1483.551214,0.00022085,7]
[331126626,1720096249386,-151.0,0.00022085,7]
[331126627,1720096249396,-151.0,0.00022085,7]
[331126628,1720096249405,-151.0,0.00022085,7]
[331126629,1720096249415,-3028.4099449,0.00022085,2]
[331126630,1720096249424,-151.0,0.00022085,7]
[331126631,1720096249434,-981.615554,0.00022085,7]
[331126632,1720096249444,-981.615554,0.00022085,7]
[331126633,1720096249454,-151.0,0.00022085,7]
[331126634,1720096249464,-151.0,0.00022085,7]
[331126635,1720096249473,-151.0,0.00022085,7]
[331126636,1720096249482,-151.0,0.00022085,7]
[331126637,1720096249492,-151.0,0.00022085,7]
[331126638,1720096249502,-151.0,0.00022085,7]
[331126639,1720096249511,-151.0,0.00022085,7]
[331126640,1720096249521,-1304.294154,0.00022085,7]
[331126641,1720096249530,-1304.294154,0.00022085,7]
[331126642,1720096249540,-193.307798,0.00022085,7]
[331126643,1720096249549,-151.0,0.00022085,7]
[331126644,1720096249558,-151.0,0.00022085,7]
[331126645,1720096249568,-151.0,0.00022085,7]
[331126646,1720096249578,-288.786209,0.00022092,2]
[331126647,1720096249588,-154.11166156,0.00022094,2]
[331126648,1720096249598,-500.0,0.00022095,2]
[331126649,1720096249608,-20164.77669355,0.00022095,2]
[331126650,1720096250120,-1750.0,0.00022095,2]
[331126651,1720096252363,-450.75132957,0.00013999,2]
[331126652,1720096252373,-151.0,0.000198,2]
[331126653,1720096252384,-151.0,0.00021606,2]
[331126654,1720096252393,-684.414139,0.00021918,2]
[331126655,1720096252402,-684.414139,0.00021918,2]
[331126656,1720096252411,-500.0,0.00022025,2]
[331126657,1720096252419,-500.0,0.00022025,2]
[331126658,1720096252428,-500.0,0.00022025,2]
[331126659,1720096252437,-500.0,0.00022025,2]
[331126660,1720096252447,-500.0,0.00022025,2]
[331126661,1720096252456,-500.0,0.00022025,2]
[331126662,1720096252465,-500.0,0.00022025,2]
[331126663,1720096252477,-500.0,0.00022025,2]
[331126664,1720096252486,-500.0,0.00022025,2]
[331126665,1720096252495,-684.414139,0.00022075,7]
[331126666,1720096252504,-65534.9328157,0.00022095,2]
[331126667,1720096252513,-17094.51027512,0.00022095,2]
[331126668,1720096252522,-210.0,0.00022095,2]
[331126669,1720096252530,-210.0,0.00022095,2]
[331126670,1720096252539,-210.0,0.00022095,2]
[331126671,1720096252548,-210.0,0.00022095,2]
[331126672,1720096252557,-210.0,0.00022095,2]
[331126673,1720096252566,-210.0,0.00022095,2]
[331126674,1720096252575,-210.0,0.00022095,2]
[331126675,1720096252584,-240.0,0.00022095,2]
[331126676,1720096252594,-240.0,0.00022095,2]
[331126677,1720096252603,-222.0,0.00022095,2]
[331126678,1720096252612,-222.0,0.00022095,2]
[331126679,1720096252621,-151.0,0.00022095,7]
[331126680,1720096252630,-152.121593,0.00022095,7]
[331126681,1720096252639,-216.0275,0.00022095,7]
[331126682,1720096252649,-151.0,0.00022095,7]
[331126683,1720096252658,-224.250228,0.00022095,7]
[331126684,1720096252667,-151.0,0.00022095,7]
[331126685,1720096252676,-151.227115,0.00022095,7]
[331126686,1720096252685,-151.227115,0.00022095,7]
[331126687,1720096252694,-151.0,0.00022095,7]
[331126688,1720096252704,-151.0,0.00022095,7]
[331126689,1720096252714,-196.912765,0.00022095,7]
[331126690,1720096252723,-151.0,0.00022095,7]
[331126691,1720096252732,-151.0,0.00022095,7]
[331126692,1720096252741,-592.789373,0.00022095,7]
[331126693,1720096252750,-592.789373,0.00022095,7]
[331126694,1720096252759,-151.0,0.00022095,7]
[331126695,1720096252768,-151.0,0.00022095,7]
[331126696,1720096252777,-151.0,0.00022095,7]
[331126697,1720096252787,-603.480772,0.00022095,7]
[331126698,1720096252796,-603.480772,0.00022095,7]
[331126699,1720096252809,-281.033409,0.00022095,7]
[331126700,1720096252819,-281.033409,0.00022095,7]
[331126701,1720096252828,-151.0,0.00022095,7]
[331126702,1720096252838,-183.988412,0.00022095,7]
[331126703,1720096252847,-151.0,0.00022095,7]
[331126704,1720096252856,-151.0,0.00022095,7]
[331126705,1720096252866,-151.2398,0.00022095,7]
[331126706,1720096252875,-151.2398,0.00022095,7]
[331126707,1720096252884,-170.287508,0.00022095,7]
[331126708,1720096252894,-170.287508,0.00022095,7]
[331126709,1720096252907,-151.0,0.00022095,7]
[331126710,1720096252916,-393.647115,0.00022095,7]
[331126711,1720096252926,-393.647115,0.00022095,7]
[331126712,1720096252937,-151.0,0.00022095,7]
[331126713,1720096252946,-151.0,0.00022095,7]
[331126714,1720096252958,-184.042067,0.00022095,7]
[331126715,1720096252967,-184.042067,0.00022095,7]
[331126716,1720096252978,-151.0,0.00022095,7]
[331126717,1720096252987,-185.651718,0.00022095,7]
[331126718,1720096252995,-151.0,0.00022095,7]
[331126719,1720096253004,-185.651718,0.00022095,7]
[331126720,1720096253014,-151.0,0.00022095,7]
[331126721,1720096253023,-151.0,0.00022095,7]
[331126722,1720096253031,-151.0,0.00022095,7]
[331126723,1720096253040,-151.0,0.00022095,7]
[331126724,1720096253050,-1094.009458,0.00022095,7]
[331126725,1720096253059,-1094.009458,0.00022095,7]
[331126726,1720096253070,-151.0,0.00022095,7]
[331126727,1720096253079,-301.682833,0.00022095,7]
[331126728,1720096253088,-172.007194,0.00022095,7]
[331126729,1720096253097,-530.645601,0.00022095,7]
[331126730,1720096253106,-301.682833,0.00022095,7]
[331126731,1720096253115,-530.645601,0.00022095,7]
[331126732,1720096253124,-151.0,0.00022095,2]
[331126733,1720096253133,-151.0,0.00022095,7]
[331126734,1720096253142,-151.0,0.00022095,7]
[331126735,1720096253151,-346.077258,0.00022095,7]
[331126736,1720096253161,-1483.551214,0.00022095,7]
[331126737,1720096253170,-346.077258,0.00022095,7]
[331126738,1720096253179,-1483.551214,0.00022095,7]
[331126739,1720096253188,-151.0,0.00022095,7]
[331126740,1720096253198,-151.0,0.00022095,7]
[331126741,1720096253207,-151.0,0.00022095,7]
[331126742,1720096253216,-151.0,0.00022095,7]
[331126743,1720096253225,-981.615554,0.00022095,7]
[331126744,1720096253234,-981.615554,0.00022095,7]
[331126745,1720096253243,-151.0,0.00022095,7]
[331126746,1720096253252,-151.0,0.00022095,7]
[331126747,1720096253261,-151.0,0.00022095,7]
[331126748,1720096253270,-151.0,0.00022095,7]
[331126749,1720096253279,-151.0,0.00022095,7]
[331126750,1720096253289,-151.0,0.00022095,7]
[331126751,1720096253298,-194.665379,0.00022095,7]
[331126752,1720096253308,-1304.294154,0.00022095,7]
[331126753,1720096253317,-1304.294154,0.00022095,7]
[331126754,1720096253330,-151.0,0.00022095,7]
[331126755,1720096253340,-151.0,0.00022095,7]
[331126756,1720096253349,-151.0,0.00022095,7]
[331126757,1720096253358,-151.0,0.00022095,7]
[331126758,1720096253369,-151.0,0.00022095,7]
[331126759,1720096253379,-151.0,0.00022095,7]
[331126760,1720096253389,-151.0,0.00022095,7]
[331126761,1720096253399,-151.0,0.00022095,7]
[331126762,1720096253408,-151.0,0.00022095,7]
[331126763,1720096253417,-3517.573686,0.00022095,7]
[331126764,1720096253427,-3517.573686,0.00022095,7]
[331126765,1720096253436,-320.399581,0.00022095,7]
[331126766,1720096253447,-320.399581,0.00022095,7]
[331126767,1720096253456,-161.788309,0.00022095,7]
[331126768,1720096253466,-875.200735,0.00022095,7]
[331126769,1720096253476,-875.200735,0.00022095,7]
[331126770,1720096253485,-684.414139,0.00022095,7]
[331126771,1720096253494,-179.46413293,0.00022099,2]
[331126772,1720096253504,-214.0,0.000221,2]
[331126773,1720096253513,-4073.06,0.000221,2]
[331126774,1720096253523,-661.27063295,0.000221,2]
[331126775,1720096253532,-188.2066,0.000221,2]
[331126776,1720096253541,-7500.0,0.000221,8]
[331126777,1720096253551,-155.69165799,0.00022105,2]
[331126778,1720096253560,-661.27063295,0.00022107,2]
[331126779,1720096253569,-151.15550604,0.00022119,2]
[331126780,1720096253578,-354.88,0.00022131,2]
[331126781,1720096253588,-423.92,0.00022131,2]
[331126782,1720096253597,-300.0,0.00022131,2]
[331126783,1720096253606,-288.786209,0.00022151,2]
[331126784,1720096253616,-153.76983047,0.00022157,2]
[331126785,1720096253625,-151.15550604,0.00022161,2]
[331126786,1720096253635,-661.27063295,0.00022194,2]
[331126787,1720096253644,-155.69165799,0.00022199,2]
[331126788,1720096253653,-1950.0,0.000222,2]
[331126789,1720096253662,-10000.0,0.000222,8]
[331126790,1720096253675,-288.786209,0.00022207,2]
[331126791,1720096253685,-231.77258682,0.00022234,2]
[331126792,1720096253694,-154.32382129,0.00022239,2]
[331126793,1720096253705,-152.84332,0.0002224,2]
[331126794,1720096253714,-151.15550604,0.00022259,2]
[331126795,1720096253724,-1045.56,0.00022264,2]
[331126796,1720096253733,-167.80343198,0.00022271,2]
[331126797,1720096253742,-317.96617988,0.00022274,2]
[331126798,1720096253752,-347.6404898,0.00022275,2]
[331126799,1720096253761,-166.66666666,0.00022276,2]
[331126800,1720096253771,-288.786209,0.00022285,2]
[331126801,1720096253780,-167.00829163,0.00022287,2]
[331126802,1720096253790,-242.691302,0.000223,7]
[331126803,1720096253800,-151.0,0.000223,7]
[331126804,1720096253809,-215.683148,0.000223,7]
[331126805,1720096253818,-151.227115,0.000223,7]
[331126806,1720096253828,-151.227115,0.000223,7]
[331126807,1720096253837,-243.112392,0.000223,7]
[331126808,1720096253847,-151.0,0.000223,7]
[331126809,1720096253856,-196.912765,0.000223,7]
[331126810,1720096253865,-151.0,0.000223,7]
[331126811,1720096253874,-151.0,0.000223,7]
[331126812,1720096253884,-592.789373,0.000223,7]
[331126813,1720096253896,-592.789373,0.000223,7]
[331126814,1720096253906,-152.054926,0.000223,7]
[331126815,1720096253915,-151.0,0.000223,7]
[331126816,1720096253924,-603.480772,0.000223,7]
[331126817,1720096253934,-603.480772,0.000223,7]
[331126818,1720096253944,-281.033409,0.000223,7]
[331126819,1720096253956,-281.033409,0.000223,7]
[331126820,1720096253965,-151.0,0.000223,7]
[331126821,1720096253976,-151.0,0.000223,7]
[331126822,1720096253986,-151.0,0.000223,7]
[331126823,1720096253996,-151.2398,0.000223,7]
[331126824,1720096254005,-151.2398,0.000223,7]
[331126825,1720096254017,-170.287508,0.000223,7]
[331126826,1720096254027,-170.287508,0.000223,7]
[331126827,1720096254036,-151.0,0.000223,7]
[331126828,1720096254046,-393.647115,0.000223,7]
[331126829,1720096254056,-393.647115,0.000223,7]
[331126830,1720096254066,-151.0,0.000223,7]
[331126831,1720096254076,-151.0,0.000223,7]
[331126832,1720096254086,-184.042067,0.000223,7]
[331126833,1720096254096,-184.042067,0.000223,7]
[331126834,1720096254105,-151.0,0.000223,7]
[331126835,1720096254115,-185.651718,0.000223,7]
[331126836,1720096254125,-151.0,0.000223,7]
[331126837,1720096254135,-185.651718,0.000223,7]
[331126838,1720096254144,-151.0,0.000223,7]
[331126839,1720096254154,-151.0,0.000223,7]
[331126840,1720096254163,-151.0,0.000223,7]
[331126841,1720096254173,-151.0,0.000223,7]
[331126842,1720096254183,-1094.009458,0.000223,7]
[331126843,1720096254193,-1094.009458,0.000223,7]
[331126844,1720096254207,-151.0,0.000223,7]
[331126845,1720096254218,-301.682833,0.000223,7]
[331126846,1720096254227,-530.645601,0.000223,7]
[331126847,1720096254238,-301.682833,0.000223,7]
[331126848,1720096254248,-530.645601,0.000223,7]
[331126849,1720096254257,-151.0,0.000223,7]
[331126850,1720096254267,-346.077258,0.000223,7]
[331126851,1720096254277,-1483.551214,0.000223,7]
[331126852,1720096254289,-346.077258,0.000223,7]
[331126853,1720096254299,-1483.551214,0.000223,7]
[331126854,1720096254309,-183.191039,0.000223,7]
[331126855,1720096254319,-151.0,0.000223,7]
[331126856,1720096254328,-151.0,0.000223,7]
[331126857,1720096254337,-151.0,0.000223,7]
[331126858,1720096254347,-279.908576,0.000223,7]
[331126859,1720096254356,-151.0,0.000223,7]
[331126860,1720096254365,-151.0,0.000223,7]
[331126861,1720096254375,-3517.573686,0.000223,7]
[331126862,1720096254386,-3517.573686,0.000223,7]
[331126863,1720096254395,-320.399581,0.000223,7]
[331126864,1720096254405,-320.399581,0.000223,7]
[331126865,1720096254415,-875.200735,0.000223,7]
[331126866,1720096254424,-875.200735,0.000223,7]
[331126867,1720096254433,-684.414139,0.000223,7]
[331126868,1720096254443,-12500.0,0.000223,8]
[331126869,1720096254456,-151.15550604,0.00022319,2]
[331126870,1720096254465,-347.6404898,0.0002233,2]
[331126871,1720096254475,-661.27063295,0.00022341,2]
[331126872,1720096254484,-154.6253996,0.00022368,2]
[331126873,1720096254493,-166.66666666,0.00022372,2]
[331126874,1720096254502,-365.84115231,0.00022372,2]
[331126875,1720096254512,-1000.0,0.000224,2]
[331126876,1720096254522,-1000.0,0.000224,2]
[331126877,1720096254531,-359.7991865,0.000224,2]
[331126878,1720096254571,-370.46009368,0.00022025,2]
[331126879,1720096254583,-129.53990632,0.00022025,2]
[331126880,1720096254593,-640.2008135,0.000224,2]
[331126881,1720096254603,-1000.0,0.000224,2]
[331126882,1720096254613,-1000.0,0.000224,2]
[331126883,1720096254622,-1000.0,0.000224,2]
[331126884,1720096254631,-1000.0,0.000224,2]
[331126885,1720096254640,-987.55928018,0.000224,2]
[331126886,1720096471255,150.5,0.0001399,30]
[331126887,1720096471285,3248.0,0.0001399,30]
[331126888,1720096471312,152.0,0.0001399,30]
[331126889,1720096471769,152.0,0.0001398,30]
[331126890,1720096471797,150.5,0.0001398,30]
[331126891,1720096471824,3248.0,0.0001398,30]
[331126892,1720096472254,150.5,0.0001397,30]
[331126893,1720096472287,3248.0,0.0001397,30]
[331126894,1720096472314,152.0,0.0001397,30]
[331126898,1720096591268,150.5,0.0001399,30]
[331126899,1720096591309,150.5,0.0001399,30]
[331126900,1720096591337,1173.0,0.0001399,30]
[331126901,1720096591364,150.5,0.0001399,30]
[331126902,1720096591780,150.5,0.0001398,30]
[331126903,1720096591808,150.5,0.0001398,30]
[331126904,1720096591838,1173.0,0.0001398,30]
[331126905,1720096591865,150.88,0.0001398,30]
[331126906,1720096592243,197.0,0.0001397,30]
[331126907,1720096592281,150.5,0.0001397,30]
[331126908,1720096592314,1173.0,0.0001397,30]
[331126909,1720096592660,2274.0,0.0001399,30]
[331126910,1720096593142,2274.0,0.0001398,30]
[331126911,1720096593615,2274.0,0.0001397,30]
[331126913,1720096712742,1591.0,0.0001399,30]
[331126914,1720096713230,1591.0,0.0001398,30]
[331126915,1720096713699,1591.0,0.0001397,30]
[331126916,1720096737021,18270.80017625,0.00011199,2]
[331127127,1720096832525,246.96,0.0001399,30]
[331127128,1720096832781,1114.0,0.0001399,30]
[331127129,1720096833055,1114.0,0.0001398,30]
[331127130,1720096833535,1114.0,0.0001397,30]
[331127131,1720096951593,246.96,0.0001399,30]
[331127132,1720096952526,780.0,0.0001399,30]
[331127133,1720096952557,822.0,0.0001399,30]
[331127134,1720096953059,822.0,0.0001398,30]
[331127135,1720096953097,780.0,0.0001398,30]
[331127136,1720096953569,822.0,0.0001397,30]
[331127137,1720096953700,780.0,0.0001397,30]
[331127138,1720097056954,500.0,0.00026,120]
[331127139,1720097072834,546.0,0.0001399,30]
[331127140,1720097073326,546.0,0.0001398,30]
[331127141,1720097073766,546.0,0.0001397,30]
[331127142,1720097085949,500.0,0.00026,120]
[331127143,1720097132107,686.4,0.0001119,2]
[331127144,1720097134044,3060.0,0.00026,120]
[331127145,1720097192439,150.5,0.0001399,30]
[331127146,1720097192466,382.0,0.0001399,30]
[331127147,1720097192923,382.0,0.0001398,30]
[331127148,1720097192949,150.5,0.0001398,30]
[331127149,1720097193393,150.5,0.0001397,30]
[331127150,1720097193425,382.0,0.0001397,30]
[331127151,1720097194494,150.5,0.0001399,30]
[331127152,1720097194970,150.5,0.0001398,30]
[331127153,1720097195452,158.84,0.0001397,30]
[331127154,1720097215491,2040.0,0.00026,120]
[331127155,1720097311370,575.0,0.0001399,30]
[331127156,1720097311680,575.0,0.0001398,30]
[331127157,1720097312194,575.0,0.0001397,30]
[331127158,1720097312483,267.0,0.0001399,30]
[331127159,1720097312954,267.0,0.0001398,30]
[331127160,1720097313442,267.0,0.0001397,30]
[331127171,1720097432325,-200.0,0.00012454,2]
[331127172,1720097432335,-373.53752446,0.0001251,2]
[331127173,1720097432347,-109.48781332,0.0001251,2]
[331127174,1720097432357,-150.0,0.000126,2]
[331127175,1720097432367,-59.1570093,0.00012811,2]
[331127176,1720097432379,-190.8429907,0.00012811,2]
[331127177,1720097432388,-239.18,0.00012853,2]
[331127178,1720097432399,-239.18,0.00012888,2]
[331127179,1720097432408,-239.18,0.00012923,2]
[331127180,1720097432420,-239.18,0.00012959,2]
[331127181,1720097432429,-264.43,0.00012986,2]
[331127182,1720097432438,-239.18,0.00012994,2]
[331127183,1720097432447,-300.0,0.00013016,2]
[331127184,1720097432457,-2719.35726719,0.00013017,2]
[331127185,1720097432467,-23900.0,0.00013017,2]
[331127186,1720097432476,-157.1593,0.00013028,2]
[331127187,1720097432486,-239.18,0.00013029,2]
[331127188,1720097432496,-166.48,0.00013059,2]
[331127189,1720097432505,-239.18,0.00013064,2]
[331127190,1720097432515,-286.59,0.00013097,2]
[331127191,1720097432524,-239.18,0.000131,2]
[331127192,1720097432533,-239.18,0.00013135,2]
[331127193,1720097432542,-239.18,0.0001317,2]
[331127194,1720097432551,-150.0,0.00013176,2]
[331127196,1720097432560,-239.18,0.00013205,2]
[331127198,1720097432570,-239.18,0.00013241,2]
[331127200,1720097432579,-200.0,0.00013245,2]
[331127202,1720097432588,-499.99,0.00013245,2]